Cogmind - Beta 17 @@@ ROGUE MODE // 2026.08.21 @ 16:18:33 Player: LandRaider Result: Destroyed by SJ-7NI(R) with Subdweller Shrapnel Launcher Performance ------------- Evolutions (0) 0 Regions Visited (2) 400 Robots Destroyed (36) 180 Value Destroyed (734) 734 Prototype IDs (0) 0 Alien Tech Used (0) 0 Bonus (0) 0 TOTAL SCORE: 1314 Bonus ------- None Cogmind --------- Core Integrity 0/250 Matter 32/300 Energy 100/100 System Corruption 0% Temperature Cool (0) Movement Core (350) Ox6 Location -10/Subcaves Parts ------- > --- POWER (1) -------- (None) > --- PROPULSION (2) --- (None) > --- UTILITY (2) ------ Large Storage Unit Sensor Array > --- WEAPON (2) ------- (None) > --- INVENTORY (15) --- Improved Heat Sink Small Storage Unit Large Storage Unit Huge Storage Unit Structural Scanner Terrain Scanner ECM Suite Medium Laser Beam Cannon Grenade Launcher Grenade Launcher Dirty Datajack (20) Datajack Hammer Peak State ------------ > --- POWER ------------ Light Nuclear Core > --- PROPULSION ------- Aluminum Leg Aluminum Leg > --- UTILITY ---------- Improved Heat Sink Large Storage Unit > --- WEAPON ----------- EM Pulse Gun Medium Laser > --- INVENTORY -------- Light Ion Engine Light Treads Small Storage Unit Large Storage Unit Huge Storage Unit Structural Scanner Terrain Scanner ECM Suite Datajack Mining Claw [Rating: 12] Favorites ----------- Power Light Nuclear Core Engine Light Ion Engine Power Core Light Nuclear Core Propulsion Aluminum Leg Treads Light Treads Leg Aluminum Leg Flight Unit Flight Unit Utility Large Storage Unit Device Improved Heat Sink Storage Large Storage Unit Weapon EM Pulse Gun Energy Gun EM Pulse Gun Ballistic Gun Light Assault Rifle Launcher Grenade Launcher Build | -11 -10 -10 ------- Run | Yrd Mat Sub Slots Evolved . | . . . Power . | . . . Propulsion . | . . . Utility . | . . . Weapon . | . . . Parts Attached 26 | 8 16 2 Power 4 | 1 3 . Engine 3 | 1 2 . Core 1 | . 1 . Reactor . | . . . Propulsion 10 | 2 7 1 Treads 3 | . 2 1 Leg 5 | 2 3 . Wheel . | . . . Hover . | . . . Flight 2 | . 2 . Utility 6 | 2 3 1 Device 3 | 1 1 1 Storage 3 | 1 2 . Processor . | . . . Hackware . | . . . Protection . | . . . Artifact . | . . . Weapon 6 | 3 3 . Energy Gun 2 | 1 1 . Energy Cannon . | . . . Ballistic Gun 2 | 2 . . Ballistic Cannon . | . . . Launcher 2 | . 2 . Special Weapon . | . . . Impact Weapon . | . . . Slashing Weapon . | . . . Piercing Weapon . | . . . Special Melee Weapon . | . . . Unidentified Prototypes . | . . . Parts Lost 13 | . 6 7 Power 2 | . . 2 Propulsion 5 | . 2 3 Utility 1 | . 1 . Weapon 5 | . 3 2 Highest Loss Streak 5 | . 5 5 To Critical Strikes . | . . . Average Backups 10 | 5 8 14 Power . | . . . Propulsion 1 | 3 1 . Utility 5 | . 4 7 Weapon 2 | . 1 5 Tool/Special . | . . . Unused Backups 14 | . 4 10 Power . | . . . Propulsion 2 | . 2 . Utility 5 | . 1 4 Weapon 5 | . 1 4 Tool/Special 2 | . . 2 Average Slot Usage (%) 97 | . 98 94 Engine 5 | . 3 10 Core 8 | . 10 2 Treads 2 | . 2 1 Leg 24 | . 24 25 Device 13 | . 13 14 Storage 14 | . 14 14 Energy Gun 15 | . 17 12 Ballistic Gun 5 | . 7 . Launcher 5 | . 2 12 Peak Build Rating 12 | 7 12 12 Average Rating 9 | 5 10 8 On Entrance 6 | . 7 12 Avg Prop Armor Cover (%) . | . . . Naked Turns . | . . . Heaviest Build 88 | 11 88 31 Greatest Support 40 | 20 40 20 Greatest Overweight (x) 8 | . 8 6 Average Overweight (x) . | . . 1 Largest Inventory Capacity 25 | 8 25 15 Average Capacity 14 | 7 14 15 Most Carried 15 | 7 15 15 Average Carried 10 | 5 8 14 Final Capacity 15 | 8 15 15 Final Carried 15 | 7 15 14 Class Distribution -------------------- 52% | Scavenger-Mutant 47% | Mutant Dominant Class ---------------- Scavenger-Mutant | -10/Materials Mutant | -10/Subcaves Resources | -11 -10 -10 ----------- Run | Yrd Mat Sub Matter Collected 643 | 317 313 13 Remotely . | . . . Salvage Created 883 | 135 664 84 Parts 62 | 6 53 3 Haulers Intercepted 2 | . 2 . Recyclers Shooed 3 | 1 2 . Parts Field Recycled . | . . . Retrieved Matter . | . . . Parts Self-Destructed 2 | . . 2 Prevented . | . . . Parts Restored . | . . . Kills | -11 -10 -10 ------- Run | Yrd Mat Sub Combat Hostiles Destroyed 22 | . 18 4 Guns 4 | . 4 . AOE 18 | . 14 4 Classes Destroyed 10 | 3 6 1 Worker 1 | 1 . . Builder 2 | . 2 . Tunneler 2 | 2 . . Hauler 2 | . 2 . Recycler 2 | 1 1 . Operator 2 | . 2 . Watcher 3 | . 3 . Swarmer 8 | . 8 . Grunt 10 | . 10 . Subdweller 4 | . . 4 Best Kill Streak 8 | 2 8 2 Combat Bots Only 6 | . 6 2 Max Kills in Single Turn 4 | 1 4 1 Gunslinging . | . . . Exploded 3 | . 3 1 Melee . | . . . Uniques/NPCs Destroyed . | . . . Combat | -11 -10 -10 -------- Run | Yrd Mat Sub Hostile Shots Fired 118 | . 101 17 Missed 34 | . 27 7 Hits 84 | . 74 10 Projectile 84 | . 74 10 AOE 13 | . . 13 Damage Taken 1550 | . 875 675 Core 265 | . 91 174 Absorbed by Shields . | . . . Core Remaining (%) 100 | 100 . . Volleys Fired 104 | 19 63 22 Largest 2 | 2 2 1 Hottest 90 | 60 90 30 Shots Fired 154 | 38 94 22 Gun 112 | 38 74 . Cannon . | . . . Launcher 42 | . 20 22 Special . | . . . Kinetic 70 | 37 33 . Thermal 11 | . 11 . Explosive 42 | . 20 22 Electromagnetic 31 | 1 30 . Robot Hit Streak 12 | 8 12 3 Robot Miss Streak 3 | 3 3 . Penetration Max . | . . . Secondary Targets 1 | . 1 . Max Gunslinging Chain 1 | . 1 . Shots Hit Robots 82 | 24 56 2 Core Hits 59 | 7 44 8 Critical Kills 1 | . 1 . Critical Parts Destroyed . | . . . Critical Strikes 2 | . 2 . Burn 1 | . 1 . Destroy 1 | . 1 . Melee Attacks . | . . . Impact . | . . . Slashing . | . . . Piercing . | . . . Sneak Attacks . | . . . Combat Hostiles . | . . . Follow-up Attacks . | . . . Damage Inflicted 2354 | 206 1593 555 Guns 786 | 206 580 . Cannons . | . . . Explosions 1557 | . 1007 550 Melee . | . . . Ramming 11 | . 6 5 Kinetic 413 | 194 219 . Thermal 77 | . 77 . Explosive 1557 | . 1007 550 Electromagnetic 296 | 12 284 . Impact . | . . . Slashing . | . . . Piercing . | . . . Highest Corruption . | . . . Average Corruption . | . . . Corruption Purged . | . . . Corruption Blocked . | . . . Overload Shots . | . . . Overflow Damage 48 | . 48 . Projectiles . | . . . Explosions 48 | . 48 . Melee . | . . . Knockbacks . | . . . Impact . | . . . Kinetic . | . . . Secondary . | . . . Self-Inflicted Damage 149 | . 109 40 Shots 5 | . 4 1 Rammed . | . . . Targets Rammed 3 | . 2 1 Kicked 3 | . 2 1 Crushed . | . . . Highest Temperature 27 | 20 27 . Average Temperature 8 | 15 8 . Received Heat Transfer 273 | . 273 . Siege Activations . | . . . Martial Activations . | . . . Shielding Activations . | . . . Robots Disrupted . | . . . Combat Hostiles . | . . . Robots Corrupted . | . . . Combat Hostiles . | . . . Parts Fried 1 | . 1 . Impact Corruptions . | . . . Robots Melted . | . . . Combat Hostiles . | . . . Parts Melted 1 | . 1 . Heat Transferred 296 | . 296 . Parts Sabotaged . | . . . Parts Stolen . | . . . Parts Stripped . | . . . Power Chain Reactions . | . . . Alert | -11 -10 -10 ------- Run | Yrd Mat Sub Maximum Alert Level 1 | . 1 . Low Security (%) 57 | 100 53 . Level 1 42 | . 46 . Level 2 . | . . . Level 3 . | . . . Level 4 . | . . . Level 5 . | . . . High Security . | . . . Max Security . | . . . Peak Influence 375 | 10 375 . Initial . | . . . Average 183 | 1 199 . Influence Increases 691 | 20 671 . Destroy 0b10 Robot/C 360 | . 360 . Destroy 0b10 Robot/NC 70 | 20 50 . Destroy Leader 80 | . 80 . Successful Hack 17 | . 17 . Select Force Hacks 60 | . 60 . Disable Machine 30 | . 30 . Destroy Structure 74 | . 74 . Influence Decreases 691 | 20 581 90 Entered New Map 44 | . . 44 Time Decay 581 | 20 521 40 Lost Part 66 | . 60 6 Squads Dispatched 4 | . 4 . Investigation 2 | . 2 . Extermination . | . . . Reinforcement 2 | . 2 . Assault . | . . . Garrison . | . . . Intercept . | . . . Searches Triggered . | . . . Construction Impeded . | . . . Haulers Reinforced . | . . . Active Scanning Responses . | . . . Cargo Convoy Interrupts . | . . . Stealth | -11 -10 -10 --------- Run | Yrd Mat Sub Distress Signals 1 | . 1 . Communications Jammed . | . . . Distress Signals . | . . . Times Spotted 32 | . 27 5 Peak Tracking Total 8 | . 8 2 Tactical Retreats . | . . . Traps | -11 -10 -10 ------- Run | Yrd Mat Sub Traps Triggered . | . . . Indirectly . | . . . Trap Hack Attempts . | . . . Triggered . | . . . Disarmed . | . . . Reprogrammed . | . . . Reused . | . . . Traps Extracted . | . . . Installed . | . . . Triggered . | . . . Machines | -11 -10 -10 ---------- Run | Yrd Mat Sub Machines Disabled 3 | . 3 . Max in Single Turn 1 | . 1 . Machines Repaired . | . . . Machines Dismantled . | . . . Machines Sabotaged . | . . . Overloaded Fab Kills . | . . . Hacking | -11 -10 -10 --------- Run | Yrd Mat Sub Machines Accessed 7 | . 6 1 Terminals 4 | . 4 . Fabricators . | . . . Repair Stations . | . . . Recycling Units 2 | . 2 . Scanalyzers . | . . . Garrison Access . | . . . Total Hacks 17 | . 13 4 Successful 15 | . 11 4 Failed 2 | . 2 . Catastrophic 1 | . 1 . Database Lockouts . | . . . Manual 10 | . 10 . Terminals 8 | . 8 . Fabricators . | . . . Repair Stations . | . . . Recycling Units 5 | . 5 . Scanalyzers . | . . . Garrison Access . | . . . Terminal Hacks 6 | . 2 4 Record 4 | . . 4 Robot Analysis 1 | . 1 . Locate Traps 1 | . 1 . Fabricator Hacks . | . . . Repair Station Hacks . | . . . Recycling Unit Hacks . | . . . Scanalyzer . | . . . Garrison Access Hacks . | . . . Unauthorized Hacks 9 | . 9 . Terminals 4 | . 4 . Botnet 4 | . 4 . Fabricators . | . . . Repair Stations . | . . . Recycling Units 5 | . 5 . Reject 1 | . 1 . Recyclers 1 | . 1 . Mask 1 | . 1 . Tunnel 2 | . 2 . Scanalyzers . | . . . Garrison Access . | . . . Data Cores Recovered . | . . . Used . | . . . Hacking Detections 5 | . 5 . Full Trace Events . | . . . Feedback Events . | . . . Feedback Blocked . | . . . Robot Schematics Acquired . | . . . Robots Built . | . . . Authchips . | . . . Time . | . . . Total Robot Build Rating . | . . . Part Schematics Acquired . | . . . Parts Built . | . . . Authchips . | . . . Time . | . . . Total Part Build Rating . | . . . Part Studies Acquired . | . . . Parts Repaired . | . . . Time . | . . . Parts Recycled . | . . . Recycled Matter . | . . . Retrieved Matter . | . . . Retrieved Components . | . . . Parts Scanalyzed . | . . . Part Schematics Acquired . | . . . Parts Damaged . | . . . Bothacking | -11 -10 -10 ------------ Run | Yrd Mat Sub Used RIF Installer . | . . . Robots Hacked . | . . . Non-combat . | . . . Combat . | . . . Robot Hacks Applied . | . . . Relay Couplers Released . | . . . Fabnet Peak Effective % . | . . . Robots Rewired . | . . . Allies Hacked . | . . . Hacks Repelled . | . . . Allies | -11 -10 -10 -------- Run | Yrd Mat Sub Total Allies . | . . . Largest Group . | . . . Highest-Rated Group . | . . . Highest-Rated Ally . | . . . Total Orders . | . . . Ally Attacks . | . . . Total Damage . | . . . Kills . | . . . Allies Corrupted . | . . . Allies Melted . | . . . Intel | -11 -10 -10 ------- Run | Yrd Mat Sub Active Infowar (turns) 1038 | 42 358 638 Sensors 638 | . . 638 Seismic 400 | 42 358 . Robot Analysis Total 1 | . 1 . Derelict Logs Recovered . | . . . Drone Launches . | . . . Drone Recoveries . | . . . Exploration | -11 -10 -10 ------------- Run | Yrd Mat Sub Turns Passed 2449 | 148 1623 678 Spaces Moved 1179 | 73 782 324 Core 16 | 10 3 3 Treads 66 | . 49 17 Legs 1083 | 63 716 304 Wheels . | . . . Hover . | . . . Flight 14 | . 14 . Fastest Speed 50 | 50 120 190 Average Speed 179 | 110 180 194 Slowest Speed 520 | 120 520 350 Overloaded Moves . | . . . Propulsion Burnouts . | . . . Robots Hopped . | . . . Potential Cave-ins 3 | . 3 . Cave-ins Triggered . | . . . Exploration Rate (%) 40 | 4 97 19 Regions Visited 2 Branch Regions 1 Pre-discovered Areas 3 | . 2 1 Known Exits Taken . | . . . Unknown Exits Taken 2 | 1 1 . Scrap Searched . | . . . Spaces Dug . | . . . Terrain Destroyed 185 | . 104 81 Melee . | . . . Projectile . | . . . AOE 185 | . 104 81 Terrain Rammed . | . . . Walls Destroyed . | . . . Machines Disabled . | . . . Actions | -11 -10 -10 --------- Run | Yrd Mat Sub Total 1362 | 106 905 351 Wait 12 | . 12 . Move 1177 | 72 781 324 Hop . | . . . Pick Up 25 | 7 17 1 Fast Attach 14 | 7 7 . Attach 4 | . 2 2 Detach . | . . . Swap 11 | 1 9 1 Drop 12 | . 12 . Fire 104 | 19 63 22 Melee . | . . . Ram . | . . . Kick 3 | . 2 1 Crush . | . . . Escape Stasis . | . . . Rewire . | . . . Trap . | . . . Miscellaneous . | . . . Route ------- -11/Scrapyard -10/Materials (discovered 6 exits: [*Mat x3] / [*Min x2] / *Sub) -10/Subcaves History --------- Turn | Location | Event 8 | -11/Scrapyard | Discovered new exit (range 15) 149 | -11/Scrapyard | Entered Materials 298 | -10/Materials | Discovered new exit (range 13) 310 | -10/Materials | Build established: Mutant 390 | -10/Materials | Discovered new exit (range 12) 554 | -10/Materials | Lost 5 parts (2n1u2w) 658 | -10/Materials | Discovered new exit (range 8) 825 | -10/Materials | Build established: Scavenger-Mutant 1122 | -10/Materials | Discovered new exit (range 16) 1309 | -10/Materials | Discovered new exit (range 16) 1753 | -10/Materials | Discovered new exit (range 8) 1772 | -10/Materials | Entered Subcaves 1865 | -10/Subcaves | Core integrity fell below 50% 1992 | -10/Subcaves | Visited Clippyterm 1998 | -10/Subcaves | Learned location of Deep Caves (-6) 2106 | -10/Subcaves | Build established: Mutant 2413 | -10/Subcaves | Core integrity fell below 20% 2429 | -10/Subcaves | Lost 5 parts (1p2n2w) 2450 | -10/Subcaves | Destroyed by SJ-7NI(R) with Subdweller Shrapnel Launcher Last Messages --------------- responses. --DD-NU8 02038_ Acquired 5 matter. 02076_ The unstable cave ceiling collapses. 02098_ 18 Matter crushed. 02104_ Subatomizers dissect the Sub. Optics. 02105_ The unstable cave ceiling collapses. 02106_ OB-CAN(u) builds Twisted Machinery. 02118_ Subatomizers dissect the Sub. Optics. 02176_ The unstable cave ceiling collapses. 02188_ OB-CAN(u) builds Twisted Machinery. 02259_ Acquired 8 matter. 02297_ Kicked QC-V87(O). 02309_ OB-CAN(u) builds Twisted Machinery. 02395_ SJ-7NI(R): "SUBMAD!" 02396_ EM Pulse Gun destroyed. 02396_ Grenade Launcher destroyed. 02398_ Aluminum Leg destroyed. 02398_ Lgt. Ion Engine destroyed. 02398_ Aluminum Leg destroyed. 02440_ Lgt. Treads destroyed. Map ----- +----------------------------------------------------+ | | | | | | | | | ?????????????????????????????????????????????????? | | ?????????????????????????????????????????????????? | | ?????????????????????????????????????????????????? | | ?????????????????????????????????????????????????? | | ?????????????????????????????????????????????????? | | ?????????????????????????????????????????????????? | | ?????????????????????????????????????????????????? | | ?????????????????????????????????????????????????? | | ?????????????????????????????????????????????????? | | ?????????????????????????????????????????????????? | | ?????????????????????????????????????????????????? | | ????????????????????????????????#######??????????? | | ????????????????????????????????#"""""#??????????? | | ????????????????????????????????#""X""#??????????? | | ####????????????????????????????#" "#??????????? | | ##?????####??????????????????### ####?????????? | | ##?####" ###??????????#####??## ## #??????###? | | """"###" "# #?########## #### ##?????# #? | | """"" "& #?# ## ##???## ## | | """ " # "# #?# ;# # #??## | | # "#"""""##"# ### ;; ## ###?## | | ## ##" # ##"# @ #???# | | #" #?# "#" ; ; # # ## ## #???# ## | | #"" ### ;;############ #???####### | | # ##" " ##????????## ####??????# | | " ; ##?????????# ## ######## | | ;# ##??????????# | | ##???????????## ## | | R ###?????????????# #### | | #??????????????# #??### | | ! #??????????????# #????## "" | | " ###?????????????# #?????## | | ## ####???????????????#### #??????### | | ####?????????????????????# ???????## | | ##????????????????????????# ##??????# | | #????????????????????????? #???????## | | #???????????????????????? ????????# | | ## ## #????????????????????????# #????????? | | ##########???????????????????????? ????????? | | #?????????????????????????????????# ????????? | | #?????????????????????????????????? ????????? | | #?????????????????????????????????? ????????? | | #??????????????????????????????????# ????????? | | #??????????????????????????????????????????# ## | | ???????????????????????????????????# ## | | ## ????????????????????????????????????# | +----------------------------------------------------+ Best States ------------- Heat Dissipation 39 Energy Generation 14 Energy Capacity 160 Matter Stores 300 Matter Capacity 300 Sight Range 16 Robot Scan Range 14 Terrain Scan Density 10 Evasion (%) 55 Recoil Reduction 2 Item Schematics ----------------- None Robot Schematics ------------------ None Fabricated ------------ Nothing Repaired ---------- Nothing Studied --------- None Alien Tech Used ----------------- None Achievements -------------- None Challenges ------------ None Game ------ Seed SkeletonFactoryFirepult Manual? 0 Play Time 00:18:22 Cumulative 93.8 hours Start 2026.08.21 @ 15:11:38 End 2026.08.21 @ 16:18:33 Sessions 1 Manual Loads 0 Difficulty Rogue Special Mode None Game No. 87 Rogue 85 Adventurer 2 Explorer 0 Win Type - Total 0 Types 0/0/0/0/0/0/0/0/0/0 Lore% 45 Gallery% 39 Achievement% 31 Wizard Run 0 Options --------- Layout 0 ASCII 0 Keyboard 0 Movement Mouse Keybinds 0 Fullscreen 2 Font 24/Smallcaps Map View 76x50 Zoom Use 0% Tactical HUD 1 Map Filters NONE Filters NONE Steam 1 RUN: 622be660-4cba-454d-9ab3-1b226f718092